[Event "Titled Tuesday Blitz July 6 2021"]
[White "Arabidze, Meri"]
[Black "Pakleza, Zbigniew"]
[WhiteFideId "13604040"]
[BlackFideId "1119290"]
[WhiteElo "2432"]
[BlackElo "2526"]
[Result "1-0"]
[Round "09"]
[TimeControl "180+1"]
[Date "2021.07.06"]
[WhiteClock "0:00:18"]
[BlackClock "0:00:05"]

1. d4 {[%clk 0:02:57]}  d6 {[%clk 0:02:59]} 2. Nf3 {[%clk 0:02:57]}  Bg4 {[%clk 0:02:59]} 3. c4 {[%clk 0:02:55]}  c6 {[%clk 0:02:57]} 4. Nc3 {[%clk 0:02:55]}  Nd7 {[%clk 0:02:57]} 5. e3 {[%clk 0:02:56]}  e5 {[%clk 0:02:57]} 6. Be2 {[%clk 0:02:56]}  Ngf6 {[%clk 0:02:57]} 7. h3 {[%clk 0:02:55]}  Bh5 {[%clk 0:02:57]} 8. O-O {[%clk 0:02:44]}  Be7 {[%clk 0:02:57]} 9. b4 {[%clk 0:02:40]}  O-O {[%clk 0:02:54]} 10. b5 {[%clk 0:02:40]}  Qc7 {[%clk 0:02:37]} 11. Bb2 {[%clk 0:02:35]}  Rfe8 {[%clk 0:02:33]} 12. a4 {[%clk 0:02:30]}  Rac8 {[%clk 0:02:22]} 13. Rc1 {[%clk 0:02:28]}  Qa5 {[%clk 0:02:06]} 14. Nh4 {[%clk 0:02:17]}  Bxe2 {[%clk 0:02:04]} 15. Nxe2 {[%clk 0:02:18]}  Bf8 {[%clk 0:01:59]} 16. Nf5 {[%clk 0:02:13]}  Qc7 {[%clk 0:01:50]} 17. Ba3 {[%clk 0:01:56]}  e4 {[%clk 0:01:30]} 18. c5 {[%clk 0:01:41]}  dxc5 {[%clk 0:01:20]} 19. dxc5 {[%clk 0:01:42]}  Qe5 {[%clk 0:01:12]} 20. Nd6 {[%clk 0:01:36]}  Bxd6 {[%clk 0:01:12]} 21. Qxd6 {[%clk 0:01:34]}  Qxd6 {[%clk 0:01:03]} 22. cxd6 {[%clk 0:01:35]}  c5 {[%clk 0:01:04]} 23. Nf4 {[%clk 0:01:21]}  Red8 {[%clk 0:00:57]} 24. Rfd1 {[%clk 0:01:21]}  Kf8 {[%clk 0:00:53]} 25. a5 {[%clk 0:01:20]}  b6 {[%clk 0:00:51]} 26. Bb2 {[%clk 0:01:11]}  Rb8 {[%clk 0:00:44]} 27. Ra1 {[%clk 0:01:05]}  Rdc8 {[%clk 0:00:33]} 28. g4 {[%clk 0:01:02]}  h6 {[%clk 0:00:33]} 29. axb6 {[%clk 0:00:55]}  axb6 {[%clk 0:00:27]} 30. Ra7 {[%clk 0:00:55]}  Ra8 {[%clk 0:00:26]} 31. Rda1 {[%clk 0:00:47]}  Rxa7 {[%clk 0:00:24]} 32. Rxa7 {[%clk 0:00:47]}  c4 {[%clk 0:00:18]} 33. Rc7 {[%clk 0:00:47]}  Ra8 {[%clk 0:00:13]} 34. Rxc4 {[%clk 0:00:44]}  g5 {[%clk 0:00:10]} 35. Nh5 {[%clk 0:00:27]}  Ne8 {[%clk 0:00:08]} 36. Rc6 {[%clk 0:00:19]}  Ra2 {[%clk 0:00:06]} 37. Bd4 {[%clk 0:00:18]}  Ra5 {[%clk 0:00:06]} 38. Rc8 {[%clk 0:00:18]}  Rxb5 {[%clk 0:00:02]} 39. Bg7+ {[%clk 0:00:18]}  Kg8 {[%clk 0:00:02]} 40. Rxe8+ {[%clk 0:00:19]}  Kh7 {[%clk 0:00:03]} 41. Rh8+ {[%clk 0:00:18]}  Kg6 {[%clk 0:00:03]} 42. Bd4 {[%clk 0:00:17]}  f6 {[%clk 0:00:03]} 43. Rd8 {[%clk 0:00:17]}  Nc5 {[%clk 0:00:02]} 44. Bxc5 {[%clk 0:00:17]}  Rxc5 {[%clk 0:00:03]} 45. d7 {[%clk 0:00:17]}  Rd5 {[%clk 0:00:03]} 46. Rg8+ {[%clk 0:00:17]}  Kf7 {[%clk 0:00:04]} 47. d8=Q {[%clk 0:00:17]}  Rxd8 {[%clk 0:00:05]} 48. Rxd8 {[%clk 0:00:18]} 1-0


[Site "https://www.chess.com"]

[Event "Titled Tuesday Blitz July 6 2021"]
[White "Arutinian, David"]
[Black "Zhuravlev, Alexey"]
[WhiteFideId "13601741"]
[BlackFideId "4164199"]
[WhiteElo "2525"]
[BlackElo "2471"]
[Result "0-1"]
[Round "09"]
[TimeControl "180+1"]
[Date "2021.07.06"]
[WhiteClock "0:00:16"]
[BlackClock "0:00:19"]

1. Nf3 {[%clk 0:03:00]}  Nf6 {[%clk 0:02:56]} 2. c4 {[%clk 0:03:00]}  g6 {[%clk 0:02:56]} 3. Nc3 {[%clk 0:03:00]}  Bg7 {[%clk 0:02:55]} 4. e4 {[%clk 0:03:00]}  d6 {[%clk 0:02:56]} 5. d4 {[%clk 0:03:00]}  O-O {[%clk 0:02:55]} 6. Be2 {[%clk 0:03:01]}  e5 {[%clk 0:02:55]} 7. O-O {[%clk 0:03:01]}  Nc6 {[%clk 0:02:55]} 8. d5 {[%clk 0:03:02]}  Ne7 {[%clk 0:02:56]} 9. Ne1 {[%clk 0:03:01]}  Nd7 {[%clk 0:02:56]} 10. Be3 {[%clk 0:02:58]}  f5 {[%clk 0:02:56]} 11. f3 {[%clk 0:02:58]}  f4 {[%clk 0:02:56]} 12. Bf2 {[%clk 0:02:58]}  g5 {[%clk 0:02:56]} 13. Rc1 {[%clk 0:02:57]}  Ng6 {[%clk 0:02:42]} 14. Nb5 {[%clk 0:02:56]}  b6 {[%clk 0:02:01]} 15. b4 {[%clk 0:02:54]}  Nf6 {[%clk 0:02:00]} 16. c5 {[%clk 0:02:54]}  g4 {[%clk 0:01:41]} 17. cxd6 {[%clk 0:02:46]}  cxd6 {[%clk 0:01:41]} 18. Rc6 {[%clk 0:02:22]}  g3 {[%clk 0:01:40]} 19. hxg3 {[%clk 0:02:21]}  fxg3 {[%clk 0:01:39]} 20. Bxg3 {[%clk 0:02:22]}  Nh5 {[%clk 0:01:36]} 21. Bh2 {[%clk 0:02:22]}  Bh6 {[%clk 0:01:20]} 22. g4 {[%clk 0:02:11]}  Be3+ {[%clk 0:01:15]} 23. Kh1 {[%clk 0:02:11]}  Qh4 {[%clk 0:00:58]} 24. Nd3 {[%clk 0:01:49]}  Ng3+ {[%clk 0:00:38]} 25. Kg2 {[%clk 0:01:48]}  Nxf1 {[%clk 0:00:33]} 26. Bxf1 {[%clk 0:01:36]}  Nf4+ {[%clk 0:00:32]} 27. Kh1 {[%clk 0:01:02]}  Nxd3 {[%clk 0:00:31]} 28. Qxd3 {[%clk 0:00:59]}  Rxf3 {[%clk 0:00:29]} 29. Rc2 {[%clk 0:00:32]}  Bxg4 {[%clk 0:00:25]} 30. Nxd6 {[%clk 0:00:22]}  Raf8 {[%clk 0:00:23]} 31. Nf5 {[%clk 0:00:20]}  Bxf5 {[%clk 0:00:21]} 32. exf5 {[%clk 0:00:20]}  R8xf5 {[%clk 0:00:21]} 33. Bg2 {[%clk 0:00:16]}  Qe1+ {[%clk 0:00:19]} 0-1


[Site "https://www.chess.com"]

[Event "Titled Tuesday Blitz July 6 2021"]
[White "Ashiev, Eduard"]
[Black "Gracia Alvarez, Gerardo Antonio"]
[WhiteFideId "4130090"]
[BlackFideId "5109124"]
[WhiteElo "2106"]
[BlackElo "2148"]
[Result "0-1"]
[Round "09"]
[TimeControl "180+1"]
[Date "2021.07.06"]
[WhiteClock "0:00:10"]
[BlackClock "0:01:19"]

1. d4 {[%clk 0:03:00]}  Nf6 {[%clk 0:02:59]} 2. Nf3 {[%clk 0:03:00]}  g6 {[%clk 0:02:58]} 3. c4 {[%clk 0:02:58]}  c5 {[%clk 0:02:59]} 4. e3 {[%clk 0:02:58]}  Bg7 {[%clk 0:02:54]} 5. Nc3 {[%clk 0:02:57]}  O-O {[%clk 0:02:51]} 6. Be2 {[%clk 0:02:54]}  cxd4 {[%clk 0:02:51]} 7. exd4 {[%clk 0:02:54]}  d5 {[%clk 0:02:51]} 8. O-O {[%clk 0:02:53]}  Nc6 {[%clk 0:02:48]} 9. h3 {[%clk 0:02:50]}  Be6 {[%clk 0:02:43]} 10. c5 {[%clk 0:02:32]}  Ne4 {[%clk 0:02:43]} 11. Be3 {[%clk 0:02:28]}  Nxc5 {[%clk 0:02:26]} 12. dxc5 {[%clk 0:02:15]}  d4 {[%clk 0:02:27]} 13. Bd2 {[%clk 0:01:55]}  dxc3 {[%clk 0:02:22]} 14. Bxc3 {[%clk 0:01:54]}  Bxc3 {[%clk 0:02:22]} 15. bxc3 {[%clk 0:01:55]}  Qa5 {[%clk 0:02:10]} 16. Rb1 {[%clk 0:01:41]}  Rfd8 {[%clk 0:02:00]} 17. Qc1 {[%clk 0:01:38]}  Rd7 {[%clk 0:01:56]} 18. Qh6 {[%clk 0:01:22]}  f6 {[%clk 0:01:54]} 19. Rfe1 {[%clk 0:01:05]}  Qxc5 {[%clk 0:01:48]} 20. Bb5 {[%clk 0:00:49]}  Bxa2 {[%clk 0:01:44]} 21. Rb2 {[%clk 0:00:33]}  Bd5 {[%clk 0:01:39]} 22. Bxc6 {[%clk 0:00:13]}  Bxc6 {[%clk 0:01:33]} 23. Nd4 {[%clk 0:00:12]}  Qxc3 {[%clk 0:01:27]} 24. Rd1 {[%clk 0:00:10]}  Rxd4 {[%clk 0:01:19]} 0-1


[Site "https://www.chess.com"]

[Event "Titled Tuesday Blitz July 6 2021"]
[White "Assaubayeva, Bibisara"]
[Black "Koellner, Ruben Gideon"]
[WhiteFideId "13708694"]
[BlackFideId "12993093"]
[WhiteElo "2232"]
[BlackElo "2556"]
[Result "1-0"]
[Round "09"]
[TimeControl "180+1"]
[Date "2021.07.06"]
[WhiteClock "0:00:11"]
[BlackClock "0:00:02"]

1. d4 {[%clk 0:03:00]}  d6 {[%clk 0:02:59]} 2. e4 {[%clk 0:02:59]}  Nf6 {[%clk 0:02:59]} 3. Nc3 {[%clk 0:02:59]}  e5 {[%clk 0:02:59]} 4. Nf3 {[%clk 0:02:58]}  Nbd7 {[%clk 0:02:57]} 5. Bc4 {[%clk 0:02:57]}  Be7 {[%clk 0:02:56]} 6. O-O {[%clk 0:02:57]}  c6 {[%clk 0:02:55]} 7. h3 {[%clk 0:02:52]}  h6 {[%clk 0:02:54]} 8. a4 {[%clk 0:02:51]}  Qc7 {[%clk 0:02:52]} 9. Be3 {[%clk 0:02:23]}  Nf8 {[%clk 0:02:51]} 10. a5 {[%clk 0:02:18]}  g5 {[%clk 0:02:49]} 11. a6 {[%clk 0:02:12]}  b5 {[%clk 0:02:45]} 12. Be2 {[%clk 0:02:02]}  Ng6 {[%clk 0:02:43]} 13. b4 {[%clk 0:01:45]}  Bd7 {[%clk 0:02:27]} 14. d5 {[%clk 0:01:43]}  Rb8 {[%clk 0:02:25]} 15. dxc6 {[%clk 0:01:31]}  Bxc6 {[%clk 0:02:26]} 16. Nd5 {[%clk 0:01:32]}  Nxd5 {[%clk 0:02:23]} 17. exd5 {[%clk 0:01:32]}  Bd7 {[%clk 0:02:23]} 18. Rc1 {[%clk 0:01:30]}  Qc8 {[%clk 0:01:50]} 19. c4 {[%clk 0:01:25]}  bxc4 {[%clk 0:01:35]} 20. Bxc4 {[%clk 0:01:21]}  Rxb4 {[%clk 0:01:22]} 21. Bb5 {[%clk 0:01:15]}  Qd8 {[%clk 0:01:02]} 22. Bc6 {[%clk 0:01:08]}  Qb8 {[%clk 0:00:31]} 23. Qc2 {[%clk 0:00:59]}  Bxc6 {[%clk 0:00:15]} 24. Qxc6+ {[%clk 0:00:53]}  Kf8 {[%clk 0:00:13]} 25. Qd7 {[%clk 0:00:51]}  Kg7 {[%clk 0:00:12]} 26. Bxa7 {[%clk 0:00:45]}  Qe8 {[%clk 0:00:10]} 27. Qc7 {[%clk 0:00:33]}  Qb5 {[%clk 0:00:08]} 28. Rc6 {[%clk 0:00:25]}  Qxd5 {[%clk 0:00:07]} 29. Be3 {[%clk 0:00:21]}  Ra4 {[%clk 0:00:05]} 30. a7 {[%clk 0:00:19]}  Ra8 {[%clk 0:00:04]} 31. Qb7 {[%clk 0:00:16]}  R8xa7 {[%clk 0:00:04]} 32. Bxa7 {[%clk 0:00:16]}  Rxa7 {[%clk 0:00:05]} 33. Qxa7 {[%clk 0:00:15]}  Qxc6 {[%clk 0:00:05]} 34. Rd1 {[%clk 0:00:15]}  d5 {[%clk 0:00:02]} 35. Nxe5 {[%clk 0:00:13]}  Nxe5 {[%clk 0:00:02]} 36. Qxe7 {[%clk 0:00:12]}  Ng6 {[%clk 0:00:02]} 37. Qd8 {[%clk 0:00:11]}  Qf6 {[%clk 0:00:01]} 38. Qxf6+ {[%clk 0:00:10]}  Kxf6 {[%clk 0:00:02]} 39. Rxd5 {[%clk 0:00:11]}  Nf4 {[%clk 0:00:02]} 40. Ra5 {[%clk 0:00:11]}  Kg7 {[%clk 0:00:02]} 41. Kh2 {[%clk 0:00:11]}  Ng6 {[%clk 0:00:02]} 42. g3 {[%clk 0:00:11]}  Ne7 {[%clk 0:00:02]} 43. Kg2 {[%clk 0:00:12]}  Nf5 {[%clk 0:00:02]} 44. Rxf5 {[%clk 0:00:11]} 1-0


[Site "https://www.chess.com"]

[Event "Titled Tuesday Blitz July 6 2021"]
[White "Boidiya, Sidi"]
[Black "Bach, Matthias"]
[WhiteFideId "19600100"]
[BlackFideId "4603168"]
[WhiteElo "2113"]
[BlackElo "2213"]
[Result "0-1"]
[Round "09"]
[TimeControl "180+1"]
[Date "2021.07.06"]
[WhiteClock "0:00:13"]
[BlackClock "0:00:10"]

1. e4 {[%clk 0:03:00]}  c5 {[%clk 0:02:59]} 2. Nc3 {[%clk 0:02:58]}  a6 {[%clk 0:02:58]} 3. g3 {[%clk 0:02:58]}  b5 {[%clk 0:02:58]} 4. Bg2 {[%clk 0:02:58]}  Bb7 {[%clk 0:02:54]} 5. d3 {[%clk 0:02:58]}  e6 {[%clk 0:02:54]} 6. h3 {[%clk 0:02:59]}  Nc6 {[%clk 0:02:48]} 7. Nge2 {[%clk 0:02:59]}  g5 {[%clk 0:02:46]} 8. Be3 {[%clk 0:02:56]}  h6 {[%clk 0:02:45]} 9. Qd2 {[%clk 0:02:55]}  d6 {[%clk 0:02:36]} 10. d4 {[%clk 0:02:46]}  cxd4 {[%clk 0:02:31]} 11. Nxd4 {[%clk 0:02:45]}  Bg7 {[%clk 0:02:31]} 12. O-O-O {[%clk 0:02:43]}  Ne5 {[%clk 0:02:30]} 13. b3 {[%clk 0:02:28]}  Ne7 {[%clk 0:02:18]} 14. Kb1 {[%clk 0:02:22]}  Rc8 {[%clk 0:02:10]} 15. f4 {[%clk 0:02:16]}  N5c6 {[%clk 0:02:09]} 16. fxg5 {[%clk 0:02:07]}  hxg5 {[%clk 0:02:04]} 17. Nce2 {[%clk 0:02:00]}  Qc7 {[%clk 0:01:52]} 18. Rc1 {[%clk 0:01:27]}  Nxd4 {[%clk 0:01:28]} 19. Nxd4 {[%clk 0:01:22]}  Qc3 {[%clk 0:01:23]} 20. Rcd1 {[%clk 0:00:59]}  Be5 {[%clk 0:00:51]} 21. g4 {[%clk 0:00:45]}  Qxd2 {[%clk 0:00:38]} 22. Rxd2 {[%clk 0:00:43]}  Bf4 {[%clk 0:00:39]} 23. Bxf4 {[%clk 0:00:43]}  gxf4 {[%clk 0:00:38]} 24. Ne2 {[%clk 0:00:42]}  Ng6 {[%clk 0:00:25]} 25. Rxd6 {[%clk 0:00:39]}  Ke7 {[%clk 0:00:26]} 26. Rhd1 {[%clk 0:00:37]}  Rc7 {[%clk 0:00:26]} 27. Ng1 {[%clk 0:00:18]}  Nh4 {[%clk 0:00:19]} 28. Bf3 {[%clk 0:00:15]}  Nxf3 {[%clk 0:00:18]} 29. Nxf3 {[%clk 0:00:16]}  Rxh3 {[%clk 0:00:17]} 30. Ne5 {[%clk 0:00:13]}  Bxe4 {[%clk 0:00:17]} 31. R6d2 {[%clk 0:00:11]}  f3 {[%clk 0:00:15]} 32. Rd7+ {[%clk 0:00:11]}  Kf6 {[%clk 0:00:14]} 33. Rxc7 {[%clk 0:00:10]}  Kxe5 {[%clk 0:00:14]} 34. Rxf7 {[%clk 0:00:08]}  Rh2 {[%clk 0:00:12]} 35. Rc1 {[%clk 0:00:08]}  Bd5 {[%clk 0:00:11]} 36. Kb2 {[%clk 0:00:08]}  Ke4 {[%clk 0:00:11]} 37. g5 {[%clk 0:00:08]}  e5 {[%clk 0:00:11]} 38. g6 {[%clk 0:00:08]}  Bxf7 {[%clk 0:00:10]} 39. gxf7 {[%clk 0:00:09]}  Rh8 {[%clk 0:00:10]} 40. Re1+ {[%clk 0:00:08]}  Kf4 {[%clk 0:00:09]} 41. c4 {[%clk 0:00:05]}  bxc4 {[%clk 0:00:09]} 42. bxc4 {[%clk 0:00:06]}  Rf8 {[%clk 0:00:09]} 43. Kc3 {[%clk 0:00:07]}  Rxf7 {[%clk 0:00:09]} 44. Kb4 {[%clk 0:00:08]}  e4 {[%clk 0:00:09]} 45. c5 {[%clk 0:00:09]}  e3 {[%clk 0:00:10]} 46. Kc4 {[%clk 0:00:10]}  f2 {[%clk 0:00:10]} 47. Rd1 {[%clk 0:00:10]}  e2 {[%clk 0:00:09]} 48. Rd4+ {[%clk 0:00:11]}  Kg3 {[%clk 0:00:08]} 49. c6 {[%clk 0:00:11]}  e1=Q {[%clk 0:00:07]} 50. Rd7 {[%clk 0:00:12]}  f1=Q+ {[%clk 0:00:07]} 51. Kc5 {[%clk 0:00:12]}  Rxd7 {[%clk 0:00:07]} 52. cxd7 {[%clk 0:00:13]}  Qc3+ {[%clk 0:00:07]} 53. Kd6 {[%clk 0:00:13]}  Qf8+ {[%clk 0:00:07]} 54. Ke6 {[%clk 0:00:12]}  Qd8 {[%clk 0:00:08]} 55. a4 {[%clk 0:00:12]}  Qc6+ {[%clk 0:00:09]} 56. Ke5 {[%clk 0:00:12]}  Qdxd7 {[%clk 0:00:09]} 57. a5 {[%clk 0:00:13]}  Qdd5# {[%clk 0:00:10]} 0-1


[Site "https://www.chess.com"]

[Event "Titled Tuesday Blitz July 6 2021"]
[White "Borisova, Ekaterina"]
[Black "Novikov, Evgenij"]
[WhiteFideId "34124184"]
[BlackFideId "4125380"]
[WhiteElo "2021"]
[BlackElo "2242"]
[Result "1/2-1/2"]
[Round "09"]
[TimeControl "180+1"]
[Date "2021.07.06"]
[WhiteClock "0:00:21"]
[BlackClock "0:00:07"]

1. e4 {[%clk 0:02:50]}  c6 {[%clk 0:02:58]} 2. d4 {[%clk 0:02:50]}  d5 {[%clk 0:02:58]} 3. Nc3 {[%clk 0:02:51]}  g6 {[%clk 0:02:58]} 4. f3 {[%clk 0:02:46]}  Bg7 {[%clk 0:02:55]} 5. Be3 {[%clk 0:02:46]}  e6 {[%clk 0:02:34]} 6. Qd2 {[%clk 0:02:45]}  Nd7 {[%clk 0:02:19]} 7. h4 {[%clk 0:02:42]}  h6 {[%clk 0:02:18]} 8. O-O-O {[%clk 0:02:36]}  Nb6 {[%clk 0:02:11]} 9. Kb1 {[%clk 0:02:21]}  Ne7 {[%clk 0:02:08]} 10. g4 {[%clk 0:02:21]}  Bd7 {[%clk 0:02:01]} 11. Nh3 {[%clk 0:02:21]}  Nc4 {[%clk 0:01:53]} 12. Bxc4 {[%clk 0:02:20]}  dxc4 {[%clk 0:01:54]} 13. f4 {[%clk 0:02:15]}  Qc7 {[%clk 0:00:59]} 14. Rhg1 {[%clk 0:02:08]}  a5 {[%clk 0:00:48]} 15. f5 {[%clk 0:02:08]}  O-O-O {[%clk 0:00:43]} 16. e5 {[%clk 0:02:02]}  exf5 {[%clk 0:00:40]} 17. gxf5 {[%clk 0:02:01]}  Nxf5 {[%clk 0:00:38]} 18. Ne4 {[%clk 0:01:56]}  Nxe3 {[%clk 0:00:37]} 19. Qxe3 {[%clk 0:01:57]}  Kb8 {[%clk 0:00:34]} 20. Nd6 {[%clk 0:01:51]}  Be6 {[%clk 0:00:34]} 21. Nf4 {[%clk 0:01:49]}  Bd5 {[%clk 0:00:34]} 22. Nxd5 {[%clk 0:01:47]}  cxd5 {[%clk 0:00:35]} 23. Rdf1 {[%clk 0:01:47]}  Rd7 {[%clk 0:00:35]} 24. h5 {[%clk 0:01:46]}  g5 {[%clk 0:00:34]} 25. Qf3 {[%clk 0:01:36]}  Qc6 {[%clk 0:00:31]} 26. c3 {[%clk 0:01:32]}  Rhd8 {[%clk 0:00:29]} 27. Re1 {[%clk 0:01:29]}  b5 {[%clk 0:00:21]} 28. Nxf7 {[%clk 0:01:28]}  Rf8 {[%clk 0:00:19]} 29. e6 {[%clk 0:01:29]}  Re7 {[%clk 0:00:17]} 30. Qf5 {[%clk 0:01:28]}  b4 {[%clk 0:00:13]} 31. Ka1 {[%clk 0:01:25]}  Kb7 {[%clk 0:00:12]} 32. Qg6 {[%clk 0:01:23]}  Bh8 {[%clk 0:00:06]} 33. Rgf1 {[%clk 0:00:59]}  a4 {[%clk 0:00:05]} 34. Qxh6 {[%clk 0:00:57]}  Rfxf7 {[%clk 0:00:04]} 35. Rxf7 {[%clk 0:00:54]}  Rxf7 {[%clk 0:00:04]} 36. Qxh8 {[%clk 0:00:54]}  Re7 {[%clk 0:00:04]} 37. Qe5 {[%clk 0:00:52]}  a3 {[%clk 0:00:03]} 38. bxa3 {[%clk 0:00:52]}  bxc3 {[%clk 0:00:03]} 39. Qe2 {[%clk 0:00:51]}  Qa4 {[%clk 0:00:02]} 40. h6 {[%clk 0:00:50]}  Qxa3 {[%clk 0:00:02]} 41. Rb1+ {[%clk 0:00:48]}  Kc6 {[%clk 0:00:02]} 42. h7 {[%clk 0:00:44]}  Rxh7 {[%clk 0:00:02]} 43. Qc2 {[%clk 0:00:38]}  Ra7 {[%clk 0:00:01]} 44. Re1 {[%clk 0:00:35]}  Qe7 {[%clk 0:00:01]} 45. Qxc3 {[%clk 0:00:33]}  Qd6 {[%clk 0:00:01]} 46. Qf3 {[%clk 0:00:29]}  Re7 {[%clk 0:00:01]} 47. Qf5 {[%clk 0:00:27]}  Qb4 {[%clk 0:00:01]} 48. Rc1 {[%clk 0:00:26]}  c3 {[%clk 0:00:01]} 49. Qd3 {[%clk 0:00:25]}  Rxe6 {[%clk 0:00:01]} 50. Rxc3+ {[%clk 0:00:26]}  Kd7 {[%clk 0:00:02]} 51. Rc1 {[%clk 0:00:22]}  Re4 {[%clk 0:00:02]} 52. Rd1 {[%clk 0:00:21]}  Qc4 {[%clk 0:00:03]} 53. Qxc4 {[%clk 0:00:20]}  dxc4 {[%clk 0:00:04]} 54. Kb2 {[%clk 0:00:21]}  Kd6 {[%clk 0:00:04]} 55. Kc3 {[%clk 0:00:21]}  Kd5 {[%clk 0:00:04]} 56. Rg1 {[%clk 0:00:21]}  Re3+ {[%clk 0:00:04]} 57. Kc2 {[%clk 0:00:20]}  Kxd4 {[%clk 0:00:05]} 58. Rxg5 {[%clk 0:00:21]}  Re2+ {[%clk 0:00:05]} 59. Kc1 {[%clk 0:00:21]}  Rxa2 {[%clk 0:00:05]} 60. Rg3 {[%clk 0:00:21]}  Kc5 {[%clk 0:00:03]} 61. Rh3 {[%clk 0:00:21]}  Kb4 {[%clk 0:00:04]} 62. Rg3 {[%clk 0:00:22]}  Ra1+ {[%clk 0:00:03]} 63. Kc2 {[%clk 0:00:20]}  Rf1 {[%clk 0:00:04]} 64. Rh3 {[%clk 0:00:20]}  c3 {[%clk 0:00:04]} 65. Rh4+ {[%clk 0:00:20]}  Kc5 {[%clk 0:00:04]} 66. Kxc3 {[%clk 0:00:20]}  Rf3+ {[%clk 0:00:04]} 67. Kc2 {[%clk 0:00:20]}  Rf5 {[%clk 0:00:05]} 68. Rg4 {[%clk 0:00:20]}  Rd5 {[%clk 0:00:06]} 69. Rg3 {[%clk 0:00:20]}  Rd4 {[%clk 0:00:06]} 70. Rc3+ {[%clk 0:00:21]}  Rc4 {[%clk 0:00:06]} 71. Rxc4+ {[%clk 0:00:21]}  Kxc4 {[%clk 0:00:07]} 1/2-1/2


[Site "https://www.chess.com"]

[Event "Titled Tuesday Blitz July 6 2021"]
[White "Dang, Hoang Son"]
[Black "Yandarbiev, Ruslan"]
[WhiteFideId "12402435"]
[BlackFideId "4115023"]
[WhiteElo "2248"]
[BlackElo "2114"]
[Result "1-0"]
[Round "09"]
[TimeControl "180+1"]
[Date "2021.07.06"]
[WhiteClock "0:01:34"]
[BlackClock "0:00:13"]

1. g3 {[%clk 0:02:53]}  Nf6 {[%clk 0:02:12]} 2. Bg2 {[%clk 0:02:51]}  g6 {[%clk 0:02:12]} 3. Nf3 {[%clk 0:02:51]}  Bg7 {[%clk 0:02:13]} 4. O-O {[%clk 0:02:51]}  O-O {[%clk 0:02:14]} 5. d3 {[%clk 0:02:52]}  d5 {[%clk 0:02:14]} 6. d4 {[%clk 0:02:53]}  c5 {[%clk 0:02:10]} 7. c4 {[%clk 0:02:54]}  cxd4 {[%clk 0:02:09]} 8. cxd5 {[%clk 0:02:54]}  Nxd5 {[%clk 0:02:02]} 9. Nxd4 {[%clk 0:02:53]}  Nc6 {[%clk 0:01:56]} 10. Nxc6 {[%clk 0:02:46]}  bxc6 {[%clk 0:01:57]} 11. Qa4 {[%clk 0:02:42]}  Bd7 {[%clk 0:01:48]} 12. Qh4 {[%clk 0:02:38]}  e5 {[%clk 0:01:40]} 13. Bg5 {[%clk 0:02:34]}  f6 {[%clk 0:01:40]} 14. Bd2 {[%clk 0:02:34]}  Qb6 {[%clk 0:01:35]} 15. Nc3 {[%clk 0:02:31]}  Be6 {[%clk 0:01:21]} 16. b3 {[%clk 0:02:25]}  Rad8 {[%clk 0:01:18]} 17. Na4 {[%clk 0:02:24]}  Qb5 {[%clk 0:01:16]} 18. Rfe1 {[%clk 0:02:19]}  a5 {[%clk 0:00:56]} 19. Rac1 {[%clk 0:02:15]}  Rd6 {[%clk 0:00:37]} 20. Rc5 {[%clk 0:02:07]}  Qb7 {[%clk 0:00:29]} 21. Rxa5 {[%clk 0:02:07]}  Bf7 {[%clk 0:00:24]} 22. Nc5 {[%clk 0:01:42]}  Qc7 {[%clk 0:00:20]} 23. Qa4 {[%clk 0:01:41]}  Nb6 {[%clk 0:00:16]} 24. Qb4 {[%clk 0:01:41]}  Nd5 {[%clk 0:00:16]} 25. Qb7 {[%clk 0:01:38]}  Rc8 {[%clk 0:00:12]} 26. Qxc7 {[%clk 0:01:35]}  Rxc7 {[%clk 0:00:13]} 27. Ra8+ {[%clk 0:01:34]} 1-0


[Site "https://www.chess.com"]

[Event "Titled Tuesday Blitz July 6 2021"]
[White "Dobre, Claudiu-Cristian"]
[Black "Vlassov, Nikolai"]
[WhiteFideId "1211854"]
[BlackFideId "4103360"]
[WhiteElo "2259"]
[BlackElo "2407"]
[Result "0-1"]
[Round "09"]
[TimeControl "180+1"]
[Date "2021.07.06"]
[WhiteClock "0:00:02"]
[BlackClock "0:00:17"]

1. c4 {[%clk 0:02:37]}  f5 {[%clk 0:02:31]} 2. Nf3 {[%clk 0:02:36]}  d6 {[%clk 0:02:31]} 3. g3 {[%clk 0:02:33]}  e5 {[%clk 0:02:31]} 4. d3 {[%clk 0:02:32]}  Nc6 {[%clk 0:02:31]} 5. Bg2 {[%clk 0:02:32]}  h6 {[%clk 0:02:31]} 6. e4 {[%clk 0:02:23]}  Nf6 {[%clk 0:02:30]} 7. O-O {[%clk 0:02:15]}  g5 {[%clk 0:02:29]} 8. exf5 {[%clk 0:02:14]}  Bxf5 {[%clk 0:02:29]} 9. d4 {[%clk 0:02:14]}  Bg4 {[%clk 0:02:09]} 10. dxe5 {[%clk 0:01:54]}  dxe5 {[%clk 0:02:09]} 11. Qa4 {[%clk 0:01:46]}  Qd7 {[%clk 0:01:56]} 12. Nc3 {[%clk 0:01:36]}  O-O-O {[%clk 0:01:49]} 13. Be3 {[%clk 0:01:29]}  Bxf3 {[%clk 0:01:36]} 14. Bxf3 {[%clk 0:01:28]}  Nd4 {[%clk 0:01:36]} 15. Qxd7+ {[%clk 0:01:19]}  Rxd7 {[%clk 0:01:36]} 16. Be4 {[%clk 0:00:59]}  Bb4 {[%clk 0:01:24]} 17. f3 {[%clk 0:00:56]}  Bxc3 {[%clk 0:01:22]} 18. bxc3 {[%clk 0:00:56]}  Ne2+ {[%clk 0:01:22]} 19. Kf2 {[%clk 0:00:55]}  Nxe4+ {[%clk 0:01:21]} 20. Kxe2 {[%clk 0:00:47]}  Nxc3+ {[%clk 0:01:21]} 21. Kf2 {[%clk 0:00:47]}  Rhd8 {[%clk 0:01:19]} 22. a4 {[%clk 0:00:43]}  Nd1+ {[%clk 0:01:08]} 23. Ke2 {[%clk 0:00:43]}  Nxe3 {[%clk 0:01:06]} 24. Kxe3 {[%clk 0:00:43]}  Rd2 {[%clk 0:01:02]} 25. h4 {[%clk 0:00:38]}  gxh4 {[%clk 0:01:01]} 26. gxh4 {[%clk 0:00:37]}  R2d4 {[%clk 0:00:56]} 27. Rac1 {[%clk 0:00:32]}  Rxh4 {[%clk 0:00:55]} 28. Rh1 {[%clk 0:00:32]}  Rdd4 {[%clk 0:00:53]} 29. Rxh4 {[%clk 0:00:32]}  Rxh4 {[%clk 0:00:53]} 30. c5 {[%clk 0:00:31]}  Rxa4 {[%clk 0:00:52]} 31. Rh1 {[%clk 0:00:31]}  Rc4 {[%clk 0:00:47]} 32. Rxh6 {[%clk 0:00:31]}  Rxc5 {[%clk 0:00:47]} 33. Rh7 {[%clk 0:00:30]}  b5 {[%clk 0:00:46]} 34. Ke4 {[%clk 0:00:24]}  b4 {[%clk 0:00:46]} 35. Rh2 {[%clk 0:00:17]}  b3 {[%clk 0:00:45]} 36. Rb2 {[%clk 0:00:14]}  Rb5 {[%clk 0:00:45]} 37. Kd3 {[%clk 0:00:15]}  a5 {[%clk 0:00:45]} 38. Kc3 {[%clk 0:00:13]}  a4 {[%clk 0:00:44]} 39. Rb1 {[%clk 0:00:11]}  Kb7 {[%clk 0:00:38]} 40. Kb2 {[%clk 0:00:10]}  Kb6 {[%clk 0:00:38]} 41. Re1 {[%clk 0:00:08]}  Ka5 {[%clk 0:00:38]} 42. Ka3 {[%clk 0:00:07]}  Rd5 {[%clk 0:00:35]} 43. Re4 {[%clk 0:00:07]}  Rd4 {[%clk 0:00:29]} 44. Rxe5+ {[%clk 0:00:07]}  Kb6 {[%clk 0:00:29]} 45. Rf5 {[%clk 0:00:06]}  c5 {[%clk 0:00:29]} 46. f4 {[%clk 0:00:06]}  c4 {[%clk 0:00:28]} 47. Kxa4 {[%clk 0:00:05]}  b2 {[%clk 0:00:20]} 48. Rb5+ {[%clk 0:00:04]}  Kc6 {[%clk 0:00:20]} 49. Ka5 {[%clk 0:00:03]}  c3 {[%clk 0:00:20]} 50. Rb3 {[%clk 0:00:04]}  Rc4 {[%clk 0:00:17]} 51. Rb8 {[%clk 0:00:02]}  c2 {[%clk 0:00:17]} 0-1


[Site "https://www.chess.com"]